bitfinex/quotes_SOLUSD_20220227
["timestamp","ask_amount","ask_price","bid_price","bid_amount"]
[1645921928590,28.40923106,88.348,88.176,72.5303]
[1645921928787,1.68741993,88.347,88.176,72.5303]
[1645921929090,26.18818357,88.346,88.176,72.5303]
[1645921929290,17.0034,88.33,88.18,17.0065]
[1645921929491,1.54246273,88.319,88.18,17.0065]
[1645921930392,1.54271191,88.344,88.18,17.0065]
[1645921930588,30.4098,88.36,88.18,17.0065]
[1645921930589,1.90421779,88.359,88.182,5.75]
[1645921930792,1.7305997,88.366,88.23,16.9928]
[1645921931095,1.60209055,88.375,88.23,16.9928]
[1645921931290,1.60209055,88.375,88.24,56.6428]
[1645921931492,1.60209055,88.375,88.25,13.41]
[1645921931693,1.60209055,88.375,88.26,13.41]
[1645921931890,1.60209055,88.375,88.261,2.50758846]
[1645921932291,23.546,88.419,88.261,2.50758846]
[1645921932589,23.546,88.419,88.262,2.74678921]
[1645921932590,1.90456241,88.418,88.262,2.74678921]
[1645921932790,1.90456241,88.418,88.29,16.985]
[1645921932994,4.527,88.435,88.291,2.78145703]
[1645921933192,4.527,88.435,88.3,13.41]
[1645921933391,4.526,88.438,88.3,13.41]
[1645921933591,4.526,88.438,88.301,111.2]
[1645921933792,4.526,88.438,88.302,2.99111553]
[1645921933994,1.6607854,88.444,88.302,2.99111553]
[1645921934394,1.6607854,88.444,88.303,2.74678921]
[1645921934993,1.6607854,88.444,88.311,2.88451569]
[1645921935194,1.6607854,88.444,88.32,13.41]
[1645921936295,1.6607854,88.444,88.321,111.2]
[1645921936496,1.6607854,88.444,88.33,16.98]
[1645921936696,1.6607854,88.444,88.331,2.55924117]
[1645921938298,1.6607854,88.444,88.33,16.98]
[1645921940823,0.88904979,88.443,88.33,16.98]
[1645921941626,1.1607854,88.444,88.33,16.98]
[1645921942028,1.1607854,88.444,88.331,2.77511008]
[1645921942325,1.76881757,88.444,88.331,2.77511008]
[1645921943326,1.76881757,88.444,88.331,113.97511008]
[1645921943528,1.76881757,88.444,88.332,2.64048031]
[1645921943529,1.52945817,88.444,88.332,2.64048031]
[1645921943726,24.4982,88.445,88.332,2.64048031]
[1645921943927,24.4982,88.445,88.333,2.74678921]
[1645921944325,2.71460545,88.462,88.332,2.64048031]
[1645921944525,2.71460545,88.462,88.341,111.2]
[1645921944526,2.74678921,88.462,88.341,111.2]
[1645921944727,2.74678921,88.462,88.351,111.2]
[1645921944728,1.85773942,88.462,88.351,111.2]
[1645921944927,1.35051742,88.489,88.361,111.2]
[1645921945130,1.35051742,88.489,88.36,13.41]
[1645921945131,1.35051742,88.489,88.362,3.05984644]
[1645921945331,1.35051742,88.489,88.361,2.42281242]
[1645921945528,1.35051742,88.489,88.363,2.74678921]
[1645921945731,208.1857,88.556,88.363,2.74678921]
[1645921945732,1.36398147,88.525,88.363,2.74678921]
[1645921945929,1.36398147,88.525,88.4,16.9656]
[1645921946128,1.36398147,88.525,88.401,113.49763019]
[1645921946329,1.36398147,88.525,88.402,2.39517015]
[1645921946534,1.36398147,88.525,88.401,2.74678921]
[1645921946931,1.36398147,88.525,88.401,113.94678921]
[1645921947128,1.36398147,88.525,88.402,2.25567961]
[1645921947332,1.59354153,88.535,88.431,114.08101219]
[1645921947530,1.55683382,88.569,88.432,2.50914694]
[1645921947828,1.4858741,88.57,88.432,2.50914694]
[1645921948030,1.65181758,88.575,88.433,2.74678921]
[1645921948233,1.65181758,88.575,88.46,16.9563]
[1645921948829,0.65181758,88.575,88.461,2.94330552]
[1645921949030,11.75344131,88.576,88.461,2.94330552]
[1645921949234,1.55683382,88.592,88.461,113.98099698]
[1645921949432,1.64538281,88.618,88.471,111.2]
[1645921949631,1.64538281,88.618,88.47,16.9534]
[1645921949632,1.64538281,88.618,88.481,111.2]
[1645921949832,4.517,88.635,88.491,111.2]
[1645921950035,4.516,88.639,88.501,111.2]
[1645921950232,3.09215256,88.652,88.502,2.35046594]
[1645921950432,1.73543363,88.654,88.501,111.2]
[1645921950433,1.73543363,88.654,88.501,2.93154799]
[1645921950633,1.73543363,88.654,88.5,13.41]
[1645921950837,1.73543363,88.654,88.51,16.9448]
[1645921951034,1.73543363,88.654,88.52,13.41]
[1645921951934,1.73543363,88.654,88.501,2.40381472]
[1645921951935,13.41,88.64,88.501,2.40381472]
[1645921952134,1.4390993,88.639,88.501,2.40381472]
[1645921952333,3.21719888,88.639,88.501,2.40381472]
[1645921952942,3.21719888,88.639,88.502,2.55109871]
[1645921953535,16.9468,88.63,88.51,16.9452]
[1645921953735,1.39654999,88.629,88.511,2.33304375]
[1645921955240,1.39654999,88.629,88.52,16.9436]
[1645921955441,30.3517,88.65,88.521,2.4652627]
[1645921955638,23.7878,88.655,88.521,2.4652627]
[1645921955941,13.41,88.7,88.522,31.11123931]
[1645921956138,11.73805869,88.677,88.523,2.75217792]
[1645921956338,11.73805869,88.677,88.524,2.25169378]
[1645921956538,1.8507061,88.676,88.525,111.2]
[1645921956740,1.8507061,88.676,88.55,16.9385]
[1645921956939,1.80870171,88.699,88.561,111.2]
[1645921957140,1.37366415,88.718,88.562,3.07745579]
[1645921957339,24.9851,88.719,88.572,5.82]
[1645921957543,1.7331532,88.756,88.581,111.2]
[1645921957738,1.7331532,88.756,88.582,2.36462215]
[1645921957941,11.73212175,88.747,88.621,111.2]
[1645921958140,1.69069184,88.746,88.621,2.41234445]
[1645921958452,13.41,88.74,88.583,2.74678921]
[1645921958639,6.00894645,88.739,88.591,2.40166838]
[1645921958839,4.511,88.727,88.571,2.44651951]
[1645921959040,4.511,88.727,88.58,16.9322]
[1645921959041,16.9286,88.72,88.58,16.9322]
[1645921959243,1.79914978,88.709,88.556,2.74678921]
[1645921959440,1.79914978,88.709,88.551,2.3603777]
[1645921959441,4.513,88.708,88.551,2.8735275]
[1645921959642,5.0,88.704,88.53,13.41]
[1645921959842,13.41,88.69,88.542,3.05407716]
[1645921960044,6.08217131,88.689,88.542,3.05407716]
[1645921960242,1.56917131,88.689,88.542,3.05407716]
[1645921960441,16.9384,88.68,88.542,3.05407716]
[1645921960640,5.88279682,88.679,88.542,3.05407716]
[1645921960840,4.514,88.689,88.542,3.05407716]
[1645921961044,1.49101441,88.689,88.542,5.80086637]
[1645921961242,1.49101441,88.689,88.552,3.08738219]
[1645921961441,1.49101441,88.689,88.55,13.41]
[1645921961740,1.39722018,88.679,88.551,2.6214908]
[1645921961940,1.39722018,88.679,88.55,13.41]
[1645921962141,1.39722018,88.679,88.551,2.80523298]
[1645921962342,1.39722018,88.679,88.551,111.2]
[1645921962641,4.513,88.689,88.561,111.2]
[1645921962943,1.68960097,88.699,88.572,2.44821701]
[1645921963343,1.68960097,88.699,88.573,2.74678921]
[1645921963743,1.68960097,88.699,88.572,2.44821701]
[1645921964172,1.65673534,88.689,88.572,2.44821701]
[1645921964345,7.03673534,88.689,88.553,2.42443904]
[1645921964545,13.41,88.68,88.542,2.41548291]
[1645921964744,2.74678921,88.688,88.542,2.41548291]
[1645921964946,1.50114503,88.689,88.543,2.74678921]
[1645921965345,1.87449674,88.679,88.552,2.73281656]
[1645921965544,1.87449674,88.679,88.561,111.2]
[1645921965745,1.87449674,88.679,88.562,2.70473154]
[1645921966148,1.64682218,88.709,88.562,5.45152075]
[1645921966443,1.77040682,88.699,88.572,2.59417475]
[1645921966844,1.61166765,88.699,88.573,2.74678921]
[1645921967448,1.61166765,88.699,88.58,16.9293]
[1645921967653,1.61166765,88.699,88.581,111.2]
[1645921967949,1.46614473,88.689,88.582,2.9558701]
[1645921968548,1.46614473,88.689,88.561,111.2]
[1645921968750,16.9343,88.68,88.561,111.2]
[1645921968949,1.74704077,88.679,88.561,111.2]
[1645921969346,1.83295977,88.689,88.561,111.2]
[1645921969547,4.513,88.688,88.542,113.72907254]
[1645921969747,4.513,88.688,88.543,2.9025656]
[1645921969948,22.98647146,88.688,88.543,2.9025656]
[1645921970146,24.53950538,88.687,88.543,2.9025656]
[1645921970349,1.47426946,88.686,88.543,2.9025656]
[1645921970549,16.941,88.65,88.543,2.9025656]
[1645921970849,1.87104387,88.649,88.525,2.74678921]
[1645921971050,1.3989712,88.659,88.526,2.5440142]
[1645921971273,7.83,88.663,88.486,2.74678921]
[1645921971274,111.2,88.649,88.486,2.74678921]
[1645921971451,5.0,88.644,88.494,2.47969242]
[1645921971655,111.2,88.629,88.494,2.47969242]
[1645921971849,16.9534,88.59,88.45,56.5003]
[1645921972049,13.41,88.58,88.443,2.80148344]
[1645921972450,1.58955136,88.579,88.443,2.80148344]
[1645921972652,1.64074212,88.578,88.443,2.80148344]
[1645921972862,1.64074212,88.578,88.433,417.86920848]
[1645921973054,1.64074212,88.578,88.435,2.31736696]
[1645921973250,1.64074212,88.578,88.441,111.2]
[1645921973251,16.9591,88.56,88.441,111.2]
[1645921973451,1.78496542,88.559,88.442,2.39374134]
[1645921973856,1.61132436,88.569,88.442,2.39374134]
[1645921974453,16.9599,88.54,88.442,2.39374134]
[1645921974757,16.8599,88.54,88.442,5.14053055]
[1645921974953,1.61132436,88.569,88.442,5.14053055]
[1645921975154,1.61132436,88.569,88.442,2.74678921]
[1645921975354,1.61132436,88.569,88.426,2.74678921]
[1645921975855,1.85773942,88.568,88.422,2.41478006]
[1645921976255,16.9569,88.56,88.422,2.41478006]
[1645921976459,56.5503,88.54,88.422,2.57414052]
[1645921976656,1.47776695,88.539,88.422,2.57414052]
[1645921976857,1.47776695,88.539,88.401,2.929186]
[1645921977158,1.47776695,88.539,88.398,2.74678921]
[1645921977358,16.9651,88.52,88.402,2.74678921]
[1645921977558,1.86692049,88.519,88.388,2.74678921]
[1645921977757,69.9676,88.53,88.39,16.9673]
[1645921977959,1.40223808,88.529,88.391,2.74539726]
[1645921978160,1.40223808,88.529,88.391,5.49218647]
[1645921978560,16.9673,88.5,88.391,5.49218647]
[1645921978757,1.84383252,88.499,88.391,5.49218647]
[1645921979559,1.46043656,88.489,88.391,2.74539726]
[1645921980160,13.41,88.52,88.379,3.0325782]
[1645921980363,1.37180143,88.509,88.374,2.88265152]
[1645921980564,16.9716,88.48,88.374,2.88265152]
[1645921980762,1.83124637,88.479,88.374,2.88265152]
[1645921980963,1.83124637,88.479,88.374,114.08265152]
[1645921981164,1.83124637,88.479,88.38,16.9705]
[1645921981468,1.83124637,88.479,88.381,2.68014026]
[1645921982283,1.83124637,88.479,88.39,16.9691]
[1645921982484,16.9716,88.48,88.391,113.97091424]
[1645921982686,24.6385,88.531,88.392,2.7460903]
[1645921982687,1.44216034,88.509,88.392,2.7460903]
[1645921982891,1.85686921,88.519,88.392,5.49287951]
[1645921983086,1.48250154,88.528,88.392,5.49287951]
[1645921983289,1.48250154,88.528,88.392,2.74678921]
[1645921983883,1.48250154,88.528,88.385,3.11181202]
[1645921984284,1.48250154,88.528,88.387,111.2]
[1645921984483,16.965,88.51,88.4,16.9669]
[1645921984683,1.49998333,88.509,88.401,2.30187475]
[1645921985083,1.5311548,88.519,88.401,2.30187475]
[1645921985685,16.9669,88.5,88.411,2.81351909]
[1645921986089,1.53011575,88.528,88.411,2.81351909]
[1645921986289,1.53011575,88.528,88.412,5.3250626]
[1645921986600,23.9027,88.529,88.413,111.2]
[1645921986888,23.9027,88.529,88.414,3.00483684]
[1645921987086,23.9027,88.529,88.416,2.4383937]
[1645921987289,23.9027,88.529,88.45,16.9573]
[1645921987485,23.9027,88.529,88.452,2.72748838]
[1645921987689,23.9027,88.529,88.37,167.62]
[1645921987690,1.55223166,88.528,88.431,2.832959]
[1645921987886,1.55223166,88.528,88.417,2.74678921]
[1645921988087,1.55223166,88.528,88.401,2.33245028]
[1645921988289,1.55223166,88.528,88.401,2.95019958]
[1645921988487,1.55223166,88.528,88.402,2.74678921]
[1645921988687,1.55223166,88.528,88.403,111.2]
[1645921988890,1.55223166,88.528,88.404,2.26741798]
[1645921989488,1.55223166,88.528,88.431,111.2]
[1645921989489,16.9628,88.52,88.431,111.2]
[1645921989691,1.4409875,88.519,88.432,2.8588649]
[1645921989889,16.9628,88.52,88.432,2.8588649]
[1645921990491,16.9646,88.51,88.431,111.2]
[1645921990691,16.9646,88.51,88.432,2.30114204]
[1645921991802,1.39229883,88.528,88.441,111.2]
[1645921991998,1.39229883,88.528,88.442,2.4242832]
[1645921992394,23.9027,88.529,88.442,2.4242832]
[1645921993699,23.9027,88.529,88.45,16.9591]
[1645921993893,23.9027,88.529,88.452,3.11915391]
[1645921994596,16.9615,88.53,88.452,3.11915391]
[1645921994795,16.9575,88.55,88.519,0.13172291]
[1645921994994,1.80807115,88.549,88.519,0.13172291]
[1645921995396,1.61469934,88.556,88.519,0.13172291]
[1645921995795,16.958,88.54,88.519,0.13172291]
[1645921995997,1.61469934,88.556,88.519,0.13172291]
[1645921996199,1.55556076,88.569,88.519,0.13172291]
[1645921996998,1.59115992,88.579,88.519,0.13172291]
[1645921997400,21.1013,88.591,88.519,0.13172291]
[1645921997610,50.67919395,88.598,88.519,0.13172291]
[1645921998102,16.948,88.59,88.519,118.41172291]
[1645921998299,19.97979162,88.605,88.519,118.41172291]
[1645921998498,1.723531,88.619,88.52,2.85191765]
[1645921999097,16.9419,88.63,88.521,111.2]
[1645921999300,1.58399968,88.623,88.522,2.71001769]
[1645921999502,4.516,88.663,88.531,111.2]
[1645921999798,4.516,88.663,88.532,2.58918101]
[1645921999998,56.441,88.7,88.533,111.2]
[1645922000199,56.441,88.7,88.541,114.01039681]
[1645922000200,1.65969945,88.699,88.541,114.01039681]
[1645922000399,1.81370573,88.715,88.551,111.2]
[1645922000604,1.81370573,88.715,88.552,2.99478794]
[1645922000802,1.81370573,88.715,88.553,111.2]
[1645922001000,1.81370573,88.715,88.554,2.97650608]
[1645922001200,16.9267,88.71,88.58,16.9281]
[1645922001401,1.70556006,88.709,88.59,13.41]
[1645922001799,1.54454896,88.715,88.59,13.41]
[1645922002002,112.74454896,88.715,88.556,47.2553]
[1645922002201,16.9286,88.7,88.55,30.3502]
[1645922002398,13.41,88.69,88.551,2.68453579]
[1645922002601,1.78612152,88.689,88.551,2.68453579]
[1645922002900,20.42264341,88.689,88.54,13.41]
[1645922003098,8.72026309,88.688,88.541,3.0163428]
[1645922003297,4.20726309,88.688,88.541,2.42502964]
[1645922003500,1.46047388,88.688,88.64,0.13172291]
[1645922003699,16.9369,88.68,88.64,0.13172291]
[1645922004000,1.51673724,88.679,88.64,0.13172291]
[1645922004200,1.87322289,88.678,88.64,0.13172291]
[1645922004401,22.16414339,88.678,88.531,2.25527058]
[1645922004603,12.356553,88.677,88.531,2.25527058]
[1645922004800,1.70280673,88.676,88.531,2.25527058]
[1645922005004,20.42264341,88.676,88.531,2.25527058]
[1645922005202,1.3584661,88.675,88.531,2.25527058]
[1645922005401,1.42605513,88.669,88.55,16.9408]
[1645922005600,1.42605513,88.669,88.55,24.7608]
[1645922005800,1.42605513,88.669,88.551,2.87555309]
[1645922006201,1.42605513,88.669,88.55,7.82]
[1645922007604,16.9377,88.66,88.56,16.9377]
[1645922007831,1.84000895,88.659,88.561,2.65647674]
[1645922008004,1.84000895,88.659,88.55,7.82]
[1645922008205,16.9377,88.66,88.551,111.2]
[1645922008406,1.35487492,88.679,88.552,2.57602745]
[1645922008608,2.74678921,88.684,88.552,2.57602745]
[1645922009608,2.74678921,88.684,88.517,2.74678921]
[1645922009609,30.3437,88.68,88.517,2.74678921]
[1645922009810,1.50582735,88.679,88.517,5.7976207]
[1645922010007,6.29903399,88.678,88.517,3.05083149]
[1645922010208,5.0,88.674,88.517,2.61521096]
[1645922010409,111.2,88.659,88.517,113.98848905]
[1645922010609,111.2,88.659,88.518,2.6105134]
[1645922010610,1.4627095,88.649,88.518,2.6105134]
[1645922011108,16.9453,88.64,88.516,24.4361]
[1645922011308,13.41,88.63,88.516,24.4361]
[1645922011513,1.86090426,88.629,88.517,2.99596019]
[1645922012008,1.77809958,88.628,88.517,2.99596019]
[1645922012412,1.77809958,88.628,88.517,111.2]
[1645922012617,16.9479,88.6,88.518,2.51000895]
[1645922012915,16.9479,88.6,88.521,2.69210309]
[1645922014511,16.9479,88.6,88.5,20.00856071]
[1645922014712,16.9514,88.58,88.481,2.4600233]
[1645922014915,1.39364432,88.579,88.473,2.61867204]
[1645922015344,1.77809958,88.578,88.473,2.61867204]
[1645922015734,1.77809958,88.578,88.43,13.41]
[1645922015935,16.9548,88.56,88.431,2.41574084]
[1645922016137,1.81237244,88.559,88.448,111.2]
[1645922016335,1.81237244,88.559,88.449,2.77429972]
[1645922016536,2.74678921,88.559,88.449,2.77429972]
[1645922016741,1.85773942,88.558,88.431,3.07540694]
[1645922016940,1.85773942,88.558,88.432,3.06787389]
[1645922017138,1.85773942,88.558,88.433,2.62383488]
[1645922017338,4.519,88.557,88.433,2.62383488]
[1645922017539,16.962,88.54,88.433,2.62383488]
[1645922017738,1.80552732,88.539,88.433,2.62383488]
[1645922018138,1.56706237,88.549,88.433,2.62383488]
[1645922018338,1.49825132,88.559,88.434,2.74678921]
[1645922018738,1.75963842,88.569,88.434,2.74678921]
[1645922019138,16.9573,88.55,88.441,111.2]
[1645922019338,16.9573,88.55,88.442,2.52060328]
[1645922019938,1.75558947,88.549,88.442,2.52060328]
[1645922020140,16.9607,88.53,88.45,16.959]
[1645922020337,1.76690252,88.529,88.45,16.959]
[1645922021542,1.76690252,88.529,88.45,16.459]
[1645922022143,1.36432387,88.559,88.451,111.2]
[1645922022345,1.40520851,88.568,88.471,111.2]
[1645922022647,1.84545695,88.575,88.471,119.5]
[1645922023243,1.84545695,88.575,88.472,3.11482412]
[1645922023444,16.954,88.56,88.481,111.2]
[1645922024446,1.84545695,88.575,88.481,111.2]
[1645922024648,1.84545695,88.575,88.473,3.07013591]
[1645922024846,16.952,88.57,88.49,16.9528]
[1645922025048,71.327,88.589,88.492,2.70030869]
[1645922025353,23.9125,88.589,88.492,2.70030869]
[1645922025751,1.59224876,88.588,88.492,2.54978826]
[1645922025951,1.59224876,88.588,88.493,2.66916104]
[1645922026148,23.9125,88.589,88.493,2.66916104]
[1645922026348,23.9125,88.589,88.501,111.2]
[1645922026548,23.9125,88.589,88.502,3.10764126]
[1645922026848,23.9125,88.589,88.56,0.06609834]
[1645922027249,16.9479,88.6,88.56,0.06609834]
[1645922027751,16.9451,88.62,88.56,0.06609834]
[1645922028750,1.70229095,88.647,88.56,0.06609834]
[1645922030453,16.9395,88.64,88.56,17.00609834]
[1645922031356,1.70229095,88.647,88.56,0.06609834]
[1645922031557,24.775,88.648,88.56,0.06609834]
[1645922031558,16.9417,88.63,88.56,0.06609834]
[1645922031755,1.4943535,88.629,88.56,0.06609834]
[1645922031956,25.46155752,88.629,88.56,0.06609834]
[1645922032154,25.77582364,88.628,88.56,0.06609834]
[1645922032354,1.79556164,88.627,88.56,0.06609834]
[1645922032555,25.76276566,88.627,88.56,0.06609834]
[1645922032756,25.75040122,88.626,88.56,0.06609834]
[1645922032961,1.44345374,88.625,88.56,0.06609834]
[1645922033254,112.56015227,88.609,88.56,0.06609834]
[1645922033457,4.515,88.608,88.56,0.06609834]
[1645922033655,1.60366803,88.606,88.56,0.06609834]
[1645922033855,4.515,88.605,88.56,0.06609834]
[1645922034056,6.29309958,88.605,88.56,0.00609834]
[1645922034259,111.2,88.599,88.56,0.00609834]
[1645922034461,111.2,88.589,88.56,0.00609834]
[1645922034656,1.53749105,88.586,88.441,2.43593939]
[1645922034859,4.519,88.585,88.441,2.43593939]
[1645922035157,16.961,88.54,88.45,16.9595]
[1645922035356,1.77363875,88.539,88.45,16.9595]
[1645922035856,1.68757227,88.549,88.45,16.9595]
[1645922036458,16.9604,88.53,88.45,16.9595]
[1645922036658,1.59268342,88.529,88.45,16.9595]
[1645922038362,16.9604,88.53,88.451,111.2]
[1645922038564,16.9604,88.53,88.452,2.44366015]
[1645922038765,16.9604,88.53,88.46,16.9594]
[1645922040065,1.76176556,88.529,88.46,16.9594]
[1645922040265,16.9615,88.52,88.45,16.9615]
[1645922040865,16.9615,88.52,88.431,111.2]
[1645922040866,1.49563014,88.519,88.431,111.2]
[1645922041062,1.49563014,88.519,88.417,2.97090979]
[1645922041262,1.85773942,88.53,88.417,2.97090979]
[1645922041466,16.9649,88.51,88.43,16.9654]
[1645922041673,1.71033437,88.509,88.417,2.97090979]
[1645922042067,2.74678921,88.518,88.417,2.97090979]
[1645922042667,2.74678921,88.518,88.403,2.96240726]
[1645922043069,1.73677446,88.489,88.381,2.9005828]
[1645922043470,1.85773942,88.488,88.381,2.9005828]
[1645922044071,1.41651302,88.469,88.38,16.9734]
[1645922044271,1.41651302,88.469,88.363,2.52908201]
[1645922044670,1.77809958,88.477,88.363,2.52908201]
[1645922045570,16.9768,88.44,88.37,16.9768]
[1645922045770,16.9768,88.44,88.371,2.6123721]
[1645922046170,1.54370284,88.469,88.23,112.2]
[1645922046171,5.0,88.413,88.23,112.2]
[1645922046371,66.67,88.469,88.231,2.94260715]
[1645922046372,1.6396685,88.409,88.231,2.94260715]
[1645922046569,72.0115,88.408,88.231,2.94260715]
[1645922046772,56.6477,88.39,88.27,16.9919]
[1645922046971,1.56510171,88.407,88.271,2.84940053]
[1645922047171,1.54261959,88.419,88.271,114.04940053]
[1645922047370,1.60352281,88.439,88.273,113.41772871]
[1645922047570,1.60352281,88.439,88.32,415.9934386]
[1645922047770,1.60352281,88.439,88.321,111.2]
[1645922047970,24.153,88.452,88.322,2.56570395]
[1645922047971,1.55276711,88.438,88.322,2.56570395]
[1645922048170,1.87008079,88.451,88.322,2.56570395]
[1645922049675,1.87008079,88.451,88.332,2.30886785]
[1645922049880,1.89758218,88.479,88.341,111.2]
[1645922050077,1.67017751,88.505,88.342,2.81112365]
[1645922050375,1.67017751,88.505,88.343,111.45]
[1645922050576,1.67017751,88.505,88.344,2.89888925]
[1645922050779,1.67017751,88.505,88.347,2.69450307]
[1645922050979,1.67017751,88.505,88.362,2.26150235]
[1645922051180,500.0,88.477,88.4,16.9662]
[1645922051377,500.0,88.477,88.394,111.2]
[1645922051578,500.0,88.477,88.39,13.41]
[1645922052378,500.0,88.477,88.391,111.2]
[1645922052580,500.0,88.477,88.41,16.9642]
[1645922053180,1.98438544,88.476,88.39,56.5472]
[1645922053381,1.98438544,88.476,88.369,435.52199136]
[1645922053580,1.98438544,88.476,88.37,16.9726]
[1645922053783,1.98438544,88.476,88.369,435.52199136]
[1645922054193,2.74678921,88.475,88.345,24.9]
[1645922054385,13.41,88.47,88.345,24.9]
[1645922054687,1.90093494,88.469,88.298,112.2]
[1645922054887,4.525,88.468,88.298,112.2]
[1645922055087,6.5279548,88.468,88.295,71.8389]
[1645922055288,3.86069422,88.468,88.3,13.41]
[1645922055591,2.74678921,88.467,88.302,2.17236246]
[1645922055988,2.74678921,88.467,88.306,177.87]
[1645922056188,2.74678921,88.467,88.321,111.2]
[1645922056391,16.9782,88.45,88.331,111.2]
[1645922056595,1.74486769,88.449,88.331,111.2]
[1645922057095,1.74486769,88.449,88.332,2.47886525]
[1645922057296,47.5786,88.469,88.332,2.47886525]
[1645922057297,1.60319257,88.468,88.332,2.47886525]
[1645922057601,1.60319257,88.468,88.334,2.30717265]
[1645922057802,1.60319257,88.468,88.341,111.2]
[1645922058000,4.524,88.509,88.34,56.5835]
[1645922058001,1.63730911,88.476,88.351,111.2]
[1645922058200,1.63730911,88.476,88.352,2.54230821]
[1645922058397,1.63730911,88.476,88.357,111.2]
[1645922058598,1.63730911,88.476,88.356,66.67]
[1645922058599,1.63730911,88.476,88.371,111.2]
[1645922058797,1.63730911,88.476,88.371,114.07128337]
[1645922060399,1.63730911,88.476,88.377,111.2]
[1645922060599,1.63730911,88.476,88.401,111.2]
[1645922061199,1.63730911,88.476,88.38,69.9643]
[1645922061200,1.63730911,88.476,88.38,56.5543]
[1645922061399,1.63730911,88.476,88.376,346.50887063]
[1645922062200,3.49504853,88.476,88.376,346.50887063]
[1645922062601,1.9400968,88.469,88.376,346.50887063]
[1645922063400,1.9400968,88.469,88.377,111.2]
[1645922063599,1.9400968,88.469,88.376,346.50887063]
[1645922063800,1.9400968,88.469,88.381,111.2]
[1645922064002,1.63531166,88.476,88.381,111.2]
[1645922064900,1.63531166,88.476,88.377,111.2]
[1645922065504,1.63531166,88.476,88.391,111.2]
[1645922067703,16.9732,88.47,88.376,346.50887063]
[1645922067903,1.78759607,88.469,88.376,346.50887063]
[1645922068103,2.74678921,88.475,88.376,346.50887063]
[1645922069308,2.74678921,88.475,88.377,111.2]
[1645922069510,16.9749,88.46,88.381,111.2]
[1645922069707,1.94814273,88.476,88.381,111.2]
[1645922070511,16.9729,88.47,88.361,111.2]
[1645922070709,1.5299941,88.469,88.361,111.2]
[1645922072113,24.2632,88.489,88.361,113.95025288]
[1645922072114,1.62954818,88.476,88.361,113.95025288]
[1645922072413,1.62954818,88.476,88.391,111.2]
[1645922073512,1.62954818,88.476,88.401,111.2]
[1645922074716,1.61189621,88.5,88.411,111.2]
[1645922075314,77.5331,88.529,88.411,111.2]
[1645922075514,1.92684223,88.498,88.411,111.2]
[1645922075715,77.5331,88.529,88.411,111.2]
[1645922075913,1.69598009,88.496,88.411,111.2]
[1645922076115,1.73505876,88.495,88.411,111.2]
[1645922076314,1.96148944,88.495,88.411,111.2]
[1645922076514,77.5331,88.529,88.421,111.2]
[1645922076915,1.75597392,88.494,88.421,111.2]
[1645922077115,1.85705756,88.517,88.421,111.2]
[1645922077317,47.9437,88.533,88.421,111.2]
[1645922077515,1.64144033,88.515,88.421,111.2]
[1645922077814,1.71098342,88.514,88.421,111.2]
[1645922078015,1.87255449,88.513,88.421,111.2]
[1645922078218,396.28,88.477,88.431,111.2]
[1645922078417,396.28,88.477,88.441,111.2]
[1645922078418,341.28,88.477,88.441,111.2]
[1645922078617,162.54358621,88.477,88.451,111.2]
[1645922078816,2.00194189,88.532,88.451,111.2]
[1645922079216,1.83773217,88.566,88.471,111.2]
[1645922079417,1.83773217,88.566,88.471,117.74]
[1645922080118,47.6168,88.582,88.471,117.74]
[1645922080318,1.8369454,88.581,88.471,117.74]
[1645922080517,1.8369454,88.581,88.491,111.2]
[1645922080719,1.8369454,88.581,88.491,116.53]
[1645922080918,79.127,88.606,88.491,116.53]
[1645922081118,1.46200773,88.603,88.491,116.53]
[1645922081520,1.46200773,88.603,88.492,2.74678921]
[1645922081719,1.46200773,88.603,88.491,116.53]
[1645922082119,1.46200773,88.603,88.511,111.2]
[1645922083120,1.46200773,88.603,88.501,111.2]
[1645922083521,1.46200773,88.603,88.481,4.516]
[1645922083522,66.67,88.602,88.481,4.516]
[1645922083721,46.9265,88.627,88.258,112.2]
[1645922083722,111.2,88.589,88.379,2.30425204]
[1645922083921,1.68282532,88.587,88.379,68.97425204]